bitfinex/quotes_SOLUSD_20240606
["timestamp","ask_amount","ask_price","bid_price","bid_amount"]
[1717702300692,20.0,169.74,169.68,2.1805]
[1717702300896,20.0,169.74,169.69,2.1803]
[1717702300897,2.1798,169.74,169.69,2.1803]
[1717702301309,26.5387,169.76,169.63,6.5869]
[1717702301502,4.3588,169.78,169.68,6.5869]
[1717702301820,2.1796,169.76,169.72,2.18]
[1717702303308,2.1794,169.77,169.73,2.1799]
[1717702303510,4.3579,169.81,169.74,2.1796]
[1717702303812,6.5366,169.82,169.75,2.1795]
[1717702303813,2.1791,169.79,169.75,2.1795]
[1717702304014,2.1791,169.79,169.75,8.5414]
[1717702304215,10.8922,169.85,169.77,2.1793]
[1717702304397,2.1789,169.81,169.77,2.1793]
[1717702304598,4.3573,169.83,169.76,45.0]
[1717702304819,19.606,169.85,169.78,2.1792]
[1717702304997,19.606,169.85,169.76,45.0]
[1717702304998,8.7139,169.85,169.76,45.0]
[1717702305317,2.1787,169.83,169.79,2.1791]
[1717702305514,4.3566,169.86,169.76,45.0]
[1717702305515,2.1788,169.82,169.78,2.1792]
[1717702305692,2.1789,169.81,169.77,2.1793]
[1717702306624,2.1788,169.82,169.78,2.1792]
[1717702306801,2.1789,169.81,169.77,2.1793]
[1717702307003,2.1787,169.82,169.78,2.1792]
[1717702307417,2.1789,169.81,169.78,2.1792]
[1717702307933,2.1789,169.81,169.77,2.1793]
[1717702308223,2.1796,169.76,169.71,2.1801]
[1717702308408,2.1797,169.75,169.71,2.1801]
[1717702308601,2.1795,169.76,169.72,2.18]
[1717702308827,2.1795,169.76,169.72,2.1799]
[1717702309006,6.5366,169.82,169.71,6.6056]
[1717702309206,2.1793,169.78,169.74,2.1797]
[1717702309703,2.1794,169.77,169.73,2.1798]
[1717702309911,2.1792,169.79,169.75,2.1796]
[1717702310130,20.0,169.81,169.71,6.6056]
[1717702310307,6.4753,169.84,169.71,6.6056]
[1717702310502,24.3573,169.83,169.71,126.6056]
[1717702310700,2.1789,169.81,169.77,2.1793]
[1717702310925,2.179,169.8,169.76,2.1795]
[1717702311121,20.0,169.83,169.72,0.17]
[1717702311436,2.1789,169.81,169.77,2.1793]
[1717702311937,2.179,169.8,169.76,2.1794]
[1717702312437,2.179,169.8,169.72,45.34]
[1717702312438,2.1789,169.81,169.77,2.1793]
[1717702312799,2.179,169.8,169.76,2.1794]
[1717702313014,20.0,169.84,169.71,6.6056]
[1717702313217,8.7161,169.81,169.71,6.6056]
[1717702313438,0.17,169.85,169.71,6.6056]
[1717702313617,2.1796,169.76,169.72,2.18]
[1717702313814,8.7164,169.8,169.73,2.1798]
[1717702314014,19.6094,169.82,169.71,6.6056]
[1717702314215,2.1801,169.72,169.68,2.1805]
[1717702314706,2.1799,169.73,169.68,2.1805]
[1717702314914,2.1799,169.73,169.69,2.1804]
[1717702315512,2.1798,169.74,169.7,2.1802]
[1717702316230,2.1797,169.75,169.7,2.1802]
[1717702316729,2.1798,169.74,169.7,2.1802]
[1717702316929,6.1351,169.76,169.59,15.4739]
[1717702317130,2.1802,169.71,169.66,2.1807]
[1717702317319,2.1802,169.71,169.59,135.4739]
[1717702317320,2.1803,169.7,169.59,135.4739]
[1717702317510,2.1801,169.72,169.59,135.4739]
[1717702317707,2.1801,169.72,169.67,2.1806]
[1717702318613,2.1802,169.71,169.67,2.1806]
[1717702318924,2.18,169.72,169.68,2.1805]
[1717702319311,20.0,169.74,169.68,2.1805]
[1717702319511,2.18,169.73,169.68,2.1805]
[1717702319715,20.0,169.74,169.69,2.1803]
[1717702320231,15.2565,169.77,169.63,120.0]
[1717702320408,2.1799,169.73,169.69,2.1803]
[1717702320615,4.3586,169.78,169.64,45.34]
[1717702320934,2.1797,169.75,169.64,45.34]
[1717702321133,2.1797,169.75,169.7,2.1802]
[1717702321339,2.1798,169.74,169.7,2.1802]
[1717702322026,2.1797,169.75,169.7,2.1802]
[1717702322232,2.1798,169.74,169.7,2.1802]
[1717702323318,2.1798,169.74,169.7,2.1803]
[1717702323839,2.1797,169.75,169.7,2.1803]
[1717702324230,2.1797,169.75,169.64,45.34]
[1717702324431,2.1797,169.75,169.71,2.1801]
[1717702324935,2.1798,169.74,169.7,8.6407]
[1717702325122,2.1798,169.74,169.71,45.0]
[1717702325328,2.1797,169.75,169.71,45.0]
[1717702325826,2.1797,169.75,169.71,47.1801]
[1717702326030,2.1798,169.74,169.71,45.0]
[1717702326231,2.1798,169.74,169.7,6.4605]
[1717702326429,4.3588,169.77,169.69,2.1803]
[1717702326430,2.1799,169.73,169.69,2.1803]
[1717702326647,2.1799,169.73,169.69,8.6071]
[1717702326836,2.1797,169.75,169.7,47.1803]
[1717702327146,2.1798,169.74,169.7,47.1803]
[1717702327848,2.1797,169.75,169.7,47.1803]
[1717702328041,2.1799,169.73,169.7,45.0]
[1717702328537,20.0,169.78,169.64,6.5385]
[1717702328722,2.1804,169.69,169.65,2.1808]
[1717702329141,2.1803,169.7,169.66,2.1808]
[1717702329647,2.1802,169.71,169.66,2.1808]
[1717702329941,2.1802,169.71,169.67,2.1806]
[1717702330118,2.1804,169.69,169.65,2.1809]
[1717702330321,2.1803,169.7,169.65,2.1808]
[1717702330534,2.1804,169.69,169.64,8.7195]
[1717702330730,2.1804,169.69,169.65,2.1809]
[1717702331037,2.1803,169.7,169.65,2.1809]
[1717702331242,2.1804,169.69,169.65,2.1809]
[1717702332152,2.1803,169.7,169.66,2.1808]
[1717702332358,2.1804,169.69,169.65,2.1809]
[1717702332853,2.1807,169.67,169.63,2.1811]
[1717702333054,2.1806,169.68,169.63,2.1811]
[1717702333251,2.1806,169.68,169.64,2.181]
[1717702333553,2.1806,169.68,169.59,15.4739]
[1717702333748,2.1806,169.68,169.63,2.1811]
[1717702333953,2.1804,169.69,169.59,15.4739]
[1717702334340,2.1804,169.69,169.64,2.181]
[1717702335158,2.1805,169.68,169.64,2.181]
[1717702335455,2.1805,169.68,169.63,2.1811]
[1717702335657,2.1807,169.67,169.63,2.1811]
[1717702336171,2.1807,169.67,169.62,2.1813]
[1717702336535,2.1807,169.67,169.63,2.1812]
[1717702337934,2.1806,169.68,169.63,2.1812]
[1717702338136,2.1805,169.69,169.64,2.181]
[1717702338337,2.1805,169.68,169.64,2.181]
[1717702339164,2.1805,169.68,169.58,6.264]
[1717702339361,2.1807,169.67,169.63,2.1812]
[1717702339544,2.1806,169.68,169.63,2.1812]
[1717702339739,2.1807,169.67,169.63,2.1812]
[1717702339940,2.1806,169.68,169.63,2.1812]
[1717702340255,2.1804,169.69,169.68,2.8194]
[1717702341847,20.0,169.71,169.68,2.8194]
[1717702342149,2.1803,169.7,169.68,2.8194]
[1717702342736,2.18,169.72,169.68,4.9999]
[1717702342935,19.4746,169.75,169.68,4.9999]
[1717702342936,4.3596,169.74,169.68,2.8194]
[1717702343135,2.1802,169.71,169.68,2.8194]
[1717702343341,2.1801,169.72,169.68,2.8194]
[1717702343562,2.1802,169.71,169.68,2.8194]
[1717702344355,2.1803,169.7,169.68,2.8194]
[1717702344743,2.1802,169.71,169.68,2.8194]
[1717702345061,2.1803,169.7,169.68,2.8194]
[1717702346049,2.1802,169.71,169.68,2.8194]
[1717702350266,2.18,169.73,169.69,2.1803]
[1717702350670,2.18,169.72,169.68,4.9999]
[1717702350973,2.1799,169.73,169.69,2.1804]
[1717702351551,2.1799,169.73,169.69,47.1804]
[1717702351751,2.1798,169.74,169.7,2.1803]
[1717702352274,20.0,169.76,169.7,2.1803]
[1717702352455,2.1798,169.74,169.7,2.1803]
[1717702353673,2.1798,169.74,169.7,47.1803]
[1717702353871,26.0559,169.79,169.7,51.4697]
[1717702354052,2.1796,169.76,169.72,2.18]
[1717702354467,2.1796,169.75,169.72,2.18]
[1717702354669,2.1796,169.76,169.72,2.18]
[1717702355572,2.1795,169.76,169.71,51.3449]
[1717702355752,2.1795,169.77,169.73,2.1799]
[1717702355953,2.1795,169.76,169.73,2.1799]
[1717702356154,2.1795,169.76,169.72,2.1799]
[1717702356574,2.1795,169.76,169.73,2.1799]
[1717702356776,2.1795,169.76,169.72,2.18]
[1717702356948,2.1794,169.77,169.72,6.4087]
[1717702357151,2.1795,169.76,169.73,45.0]
[1717702357352,2.1794,169.77,169.73,45.0]
[1717702357663,2.1794,169.77,169.73,47.1798]
[1717702357868,2.1795,169.76,169.73,45.0]
[1717702358062,2.1795,169.76,169.73,47.1798]
[1717702358688,2.1798,169.74,169.71,2.1801]
[1717702358861,2.1799,169.73,169.7,2.1802]
[1717702359257,2.1798,169.74,169.71,2.1801]
[1717702359456,2.1797,169.75,169.71,2.1801]
[1717702359672,2.1797,169.75,169.72,2.18]
[1717702359975,10.8969,169.78,169.72,2.18]
[1717702360278,2.1794,169.77,169.73,2.1798]
[1717702360457,2.1796,169.75,169.72,2.18]
[1717702360781,2.1796,169.76,169.72,8.4977]
[1717702361154,2.1794,169.77,169.73,2.1799]
[1717702361357,2.1794,169.77,169.73,47.1799]
[1717702361855,2.1794,169.77,169.74,2.1797]
[1717702362468,2.1792,169.79,169.74,45.0]
[1717702362961,2.1792,169.79,169.74,51.3177]
[1717702363761,2.1793,169.78,169.74,51.3177]
[1717702364368,2.1792,169.79,169.74,51.3177]
[1717702364676,2.1792,169.78,169.74,51.3177]
[1717702365271,2.1792,169.79,169.74,51.3177]
[1717702366778,2.1792,169.79,169.75,6.3447]
[1717702366959,4.3573,169.83,169.75,6.3447]
[1717702367278,2.1791,169.8,169.76,45.0]
[1717702367657,4.3575,169.82,169.76,45.0]
[1717702368064,2.1791,169.79,169.76,45.0]
[1717702369285,2.1792,169.78,169.76,45.0]
[1717702369787,2.1792,169.79,169.76,45.0]
[1717702370966,10.8939,169.82,169.76,45.0]
[1717702371563,2.1791,169.8,169.76,45.0]
[1717702372263,2.1791,169.8,169.76,51.0716]
[1717702372478,2.1789,169.81,169.76,51.0716]
[1717702373490,10.8938,169.82,169.76,51.0716]
[1717702373781,2.1792,169.79,169.76,51.0716]
[1717702373988,2.1791,169.8,169.76,51.0716]
[1717702375289,3.5366,169.82,169.76,51.0716]
[1717702375489,2.1792,169.79,169.76,51.0716]
[1717702376068,2.179,169.8,169.76,51.0716]
[1717702376689,30.8933,169.83,169.76,45.0]
[1717702376690,2.1791,169.79,169.76,45.0]
[1717702376877,2.179,169.8,169.76,45.0]
[1717702377599,2.1791,169.79,169.76,45.0]
[1717702377782,2.1791,169.8,169.76,45.0]
[1717702378087,35.2508,169.83,169.76,60.9655]
[1717702378088,2.1789,169.81,169.76,60.9655]
[1717702378289,2.1789,169.81,169.77,6.5061]
[1717702378487,2.1789,169.81,169.78,45.0]
[1717702379675,2.179,169.81,169.73,6.5061]
[1717702379997,2.179,169.8,169.74,45.0]
[1717702380198,2.1789,169.81,169.74,45.0]
[1717702380497,2.179,169.8,169.74,45.0]
[1717702381487,2.1791,169.79,169.74,45.0]
[1717702381689,2.1791,169.8,169.74,45.0]
[1717702381891,2.1791,169.79,169.73,6.5061]
[1717702382086,18.02,169.84,169.68,25.5398]
[1717702382428,2.1798,169.74,169.68,9.3463]
[1717702382904,2.1796,169.76,169.68,9.3463]
[1717702383079,2.1794,169.77,169.68,9.3463]
[1717702383274,2.1795,169.76,169.68,9.3463]
[1717702383887,2.1796,169.75,169.69,45.0]
[1717702384083,20.0,169.78,169.69,45.0]
[1717702384400,2.1796,169.76,169.69,45.0]
[1717702385281,4.3591,169.76,169.69,45.0]
[1717702385484,4.3591,169.76,169.68,9.3463]
[1717702385485,2.1798,169.74,169.68,9.3463]
[1717702386101,6.01,169.72,169.68,9.3463]
[1717702386684,6.01,169.73,169.68,9.3463]
[1717702386873,6.01,169.73,169.69,45.0]
[1717702388778,8.1899,169.73,169.69,45.0]
[1717702388978,6.01,169.73,169.69,45.0]
[1717702389810,2.1798,169.74,169.69,45.0]
[1717702390016,6.01,169.73,169.69,45.0]
[1717702390516,2.1797,169.75,169.69,45.0]
[1717702390680,6.01,169.74,169.69,45.0]
[1717702390982,8.1898,169.74,169.69,45.0]
[1717702391608,6.01,169.73,169.69,45.0]
[1717702391981,20.0,169.76,169.69,45.0]
[1717702392200,2.1796,169.76,169.69,45.0]
[1717702392383,6.01,169.75,169.69,51.01]
[1717702392592,8.1896,169.75,169.69,51.01]
[1717702392905,2.1796,169.75,169.69,45.0]
[1717702393108,6.01,169.74,169.69,45.0]
[1717702393400,2.1796,169.75,169.69,51.3004]
[1717702393586,6.01,169.74,169.69,51.3004]
[1717702394105,8.1898,169.74,169.69,51.3004]
[1717702394406,6.01,169.74,169.69,51.3004]
[1717702394586,8.1898,169.74,169.69,51.3004]
[1717702395095,6.01,169.74,169.69,51.3004]
[1717702395606,8.1898,169.74,169.69,51.3004]
[1717702395800,6.01,169.74,169.69,51.3004]
[1717702396104,8.1898,169.74,169.69,51.3004]
[1717702396406,6.01,169.74,169.69,51.3004]
[1717702396599,8.1898,169.74,169.69,51.3004]
[1717702397398,2.1797,169.75,169.69,57.3104]
[1717702397699,8.1897,169.75,169.69,57.3104]
[1717702398403,6.01,169.75,169.69,57.3104]
[1717702398708,6.01,169.74,169.69,57.3104]
[1717702399807,2.1798,169.74,169.69,57.3104]
[1717702400209,2.1802,169.71,169.68,2.8194]
[1717702400386,8.1904,169.69,169.68,2.8194]
[1717702402413,2.1804,169.69,169.68,2.8194]
[1717702402713,8.1904,169.69,169.68,2.8194]
[1717702403420,2.1804,169.69,169.68,2.8194]
[1717702403599,8.1904,169.69,169.68,2.8194]
[1717702404494,2.1804,169.69,169.68,2.8194]
[1717702404695,8.1904,169.69,169.68,2.8194]
[1717702405722,2.1803,169.7,169.68,2.8194]
[1717702405917,8.1904,169.69,169.68,2.8194]
[1717702406214,2.1804,169.69,169.68,2.8194]
[1717702406534,20.0,169.71,169.68,2.8194]
[1717702406535,2.1803,169.7,169.68,2.8194]
[1717702407198,6.01,169.69,169.68,2.8194]
[1717702408915,8.1904,169.69,169.68,2.8194]
[1717702409222,47.2829,169.69,169.68,2.8194]
[1717702409419,60.1936,169.69,169.68,2.8194]
[1717702409715,76.3853,169.69,169.68,2.8194]
[1717702411911,64.3653,169.69,169.68,2.8194]
[1717702412237,76.3853,169.69,169.68,2.8194]
[1717702413039,53.8242,169.69,169.68,2.8194]
[1717702415028,60.22,169.69,169.68,2.8194]
[1717702415839,60.39,169.69,169.68,2.8194]
[1717702418022,60.22,169.69,169.68,2.8194]
[1717702418465,76.222,169.69,169.68,2.8194]
[1717702418738,2.1812,169.63,169.56,6.01]
[1717702418915,6.01,169.6,169.57,45.0]
[1717702419422,6.01,169.59,169.53,13.3532403]
[1717702421625,6.01,169.6,169.54,6.01]
[1717702422246,6.01,169.6,169.55,45.0]
[1717702422927,2.1812,169.63,169.55,51.01]
[1717702423132,2.181,169.65,169.57,6.01]
[1717702423328,6.01,169.64,169.58,51.01]
[1717702423541,1.023,169.68,169.59,51.01]
[1717702423748,2.1807,169.67,169.59,6.01]
[1717702424037,6.01,169.65,169.6,45.0]
[1717702424422,8.1909,169.65,169.6,45.0]
[1717702424643,6.01,169.65,169.6,45.0]
[1717702424835,2.1809,169.65,169.6,45.0]
[1717702425548,6.01,169.64,169.6,45.0]
[1717702426239,2.1809,169.66,169.6,45.0]
[1717702426629,6.01,169.65,169.6,45.0]
[1717702426825,6.01,169.64,169.6,45.0]
[1717702427049,26.01,169.68,169.54,6.1432]
[1717702427247,6.01,169.6,169.54,12.1532]
[1717702427433,6.01,169.61,169.54,12.1532]
[1717702427633,6.01,169.61,169.55,6.01]
[1717702428039,2.1811,169.64,169.54,6.1432]
[1717702428040,6.01,169.62,169.56,6.01]
[1717702428548,6.01,169.62,169.57,45.0]
[1717702428856,6.01,169.61,169.57,45.0]
[1717702429750,4.3618,169.66,169.57,45.0]
[1717702429751,2.181,169.64,169.57,45.0]
[1717702430052,6.01,169.61,169.57,6.2305]
[1717702430250,2.181,169.65,169.57,6.2305]
[1717702430551,6.01,169.64,169.58,51.01]
[1717702430946,2.1809,169.66,169.58,51.01]
[1717702431148,6.01,169.64,169.58,51.01]
[1717702431559,22.1809,169.66,169.58,51.01]
[1717702431855,6.01,169.64,169.58,51.01]
[1717702432732,6.01,169.64,169.58,45.0]
[1717702432956,6.01,169.64,169.58,51.01]
[1717702433332,22.1809,169.66,169.58,57.4397]
[1717702433533,6.01,169.63,169.58,57.4397]
[1717702434550,2.1809,169.66,169.58,57.4397]
[1717702434766,6.01,169.64,169.58,57.4397]
[1717702435843,22.1807,169.67,169.58,57.4397]
[1717702436164,6.01,169.64,169.58,57.4397]
[1717702438769,6.01,169.64,169.59,6.01]
[1717702438969,6.01,169.64,169.6,45.0]
[1717702439471,8.71580724,169.68,169.6,45.0]
[1717702439666,6.01,169.65,169.6,51.6064]
[1717702440367,2.1806,169.68,169.6,51.6064]
[1717702440666,6.01,169.65,169.6,51.6064]
[1717702440869,6.01,169.64,169.6,51.6064]
[1717702441181,6.01,169.62,169.56,6.01]
[1717702441353,2.181,169.65,169.55,6.2168]
[1717702441354,6.01,169.61,169.55,6.2168]
[1717702441549,6.01,169.61,169.55,12.2268]
[1717702441756,2.1808,169.66,169.55,12.2268]
[1717702441960,6.01,169.61,169.55,6.2168]
[1717702442157,6.01,169.61,169.55,12.2268]
[1717702442367,6.01,169.6,169.55,12.2268]
[1717702442883,6.01,169.6,169.56,45.0]
[1717702445379,6.01,169.61,169.56,45.0]
[1717702447257,22.11280724,169.67,169.53,0.8035403]
[1717702447556,2.1815,169.61,169.53,0.8035403]
[1717702447751,2.1812,169.63,169.53,0.8035403]
[1717702447975,6.01,169.6,169.54,6.01]
[1717702448477,22.1811,169.64,169.55,6.01]
[1717702448674,2.1811,169.64,169.55,6.01]
[1717702448864,6.01,169.61,169.55,6.01]
[1717702449063,20.0,169.65,169.56,45.0]
[1717702449254,2.1808,169.66,169.57,6.01]
[1717702449583,6.01,169.63,169.58,45.0]
[1717702449769,17.7583,169.67,169.58,45.0]
[1717702449966,2.1808,169.66,169.58,45.0]
[1717702450279,6.01,169.63,169.58,45.0]
[1717702450476,2.1807,169.67,169.58,45.0]
[1717702450667,2.1806,169.68,169.58,51.01]
[1717702450876,6.01,169.65,169.59,6.01]
[1717702451073,6.01,169.65,169.6,45.0]
[1717702451373,8.5321,169.69,169.6,45.0]
[1717702451567,6.01,169.66,169.6,57.2841]
[1717702451765,6.01,169.66,169.6,51.2741]
[1717702452174,6.01,169.65,169.6,51.2741]
[1717702453366,2.1806,169.68,169.6,51.2741]
[1717702453574,6.01,169.65,169.6,51.2741]
[1717702453877,2.1806,169.68,169.54,16.5186]
[1717702453878,2.1809,169.66,169.56,12.0399]
[1717702454055,6.01,169.62,169.56,12.0399]
[1717702455164,6.01,169.61,169.57,45.0]
[1717702455863,2.1809,169.65,169.57,45.0]
[1717702456076,24.04,169.68,169.57,45.0]
[1717702456077,6.01,169.61,169.57,45.0]
[1717702456463,6.01,169.62,169.57,45.0]
[1717702457574,6.01,169.61,169.57,45.0]
[1717702458154,2.1807,169.67,169.57,45.0]
[1717702458689,2.1807,169.67,169.57,51.01]
[1717702458879,20.0,169.68,169.57,51.01]
[1717702458880,46.2206,169.68,169.57,51.01]
[1717702459180,6.01,169.63,169.57,51.01]
[1717702460479,46.2206,169.68,169.57,51.01]
[1717702460667,22.1806,169.68,169.57,51.01]
[1717702460874,22.1804,169.69,169.59,6.01]
[1717702461075,6.01,169.65,169.6,45.0]
[1717702461264,26.2205,169.68,169.58,6.01]
[1717702461470,6.01,169.64,169.59,45.0]
[1717702462064,26.2205,169.68,169.59,45.0]
[1717702462264,6.01,169.64,169.59,45.0]
[1717702462963,26.2205,169.68,169.59,45.0]
[1717702463358,6.01,169.64,169.59,45.0]
[1717702463970,2.1807,169.67,169.59,45.0]
[1717702464190,6.01,169.64,169.59,45.0]
[1717702464785,24.04,169.68,169.59,45.0]
[1717702464978,6.01,169.64,169.59,45.0]
[1717702467398,6.01,169.64,169.59,51.3044]
[1717702467765,34.8328,169.68,169.53,7.1079403]
[1717702467973,6.01,169.6,169.54,6.01]
[1717702468593,2.1812,169.63,169.53,7.1079403]
[1717702468894,6.01,169.58,169.53,13.1179403]
[1717702469194,6.01,169.58,169.53,7.1079403]
[1717702469597,15.2687,169.63,169.53,0.8035403]
[1717702469804,6.01,169.55,169.53,0.8035403]
[1717702471267,2.1817,169.59,169.53,0.8035403]
[1717702471268,6.01,169.54,169.53,0.8035403]
[1717702471782,2.1816,169.6,169.53,0.8035403]
[1717702472079,24.04,169.6,169.53,0.8035403]
[1717702472397,26.2216,169.6,169.53,0.8035403]
[1717702472583,24.04,169.6,169.53,0.8035403]
[1717702472897,26.2216,169.6,169.53,0.8035403]
[1717702477085,24.04,169.6,169.53,0.8035403]
[1717702477284,26.2216,169.6,169.53,0.8035403]
[1717702478801,2.1817,169.59,169.53,0.8035403]
[1717702479709,24.04,169.6,169.53,0.8035403]
[1717702479898,6.01,169.54,169.53,0.8035403]
[1717702480811,8.1923,169.54,169.53,0.8035403]
[1717702481795,6.01,169.54,169.53,0.8035403]
[1717702482210,2.1821,169.56,169.53,0.8035403]
[1717702482405,6.01,169.54,169.53,0.8035403]
[1717702484326,6.01,169.54,169.53,45.3424913]
[1717702484327,8.1923,169.54,169.53,45.3424913]
[1717702484517,6.01,169.54,169.53,45.3424913]
[1717702486922,5.51,169.54,169.53,45.3424913]
[1717702487927,7.6923,169.54,169.53,45.3424913]
[1717702490526,5.51,169.54,169.53,45.3424913]
[1717702492494,5.88159613,169.58,169.53,45.3424913]
[1717702492700,6.01,169.56,169.53,51.6160913]
[1717702493100,2.1817,169.6,169.53,45.3424913]
[1717702493305,6.01,169.56,169.53,45.3424913]
[1717702494391,2.1815,169.61,169.53,45.3424913]
[1717702494595,6.2542,169.63,169.53,45.3424913]
[1717702494596,24.3627,169.62,169.53,45.3424913]
[1717702494797,6.01,169.57,169.53,51.6060913]
[1717702495602,2.1816,169.6,169.53,51.6060913]
[1717702495603,6.01,169.58,169.53,51.6060913]
[1717702498518,8.1918,169.58,169.53,51.6060913]
[1717702498726,6.01,169.57,169.53,51.6060913]
[1717702499525,6.01,169.56,169.53,45.3424913]
[1717702500808,2.1819,169.57,169.53,45.3424913]
[1717702501022,24.04,169.6,169.53,45.3424913]
[1717702501214,6.01,169.55,169.53,45.3424913]
[1717702501519,30.9067,169.62,169.54,6.2744]
[1717702501717,30.9067,169.62,169.53,45.3424913]
[1717702501718,6.01,169.57,169.53,45.3424913]
[1717702502031,2.1817,169.59,169.53,45.3424913]
[1717702502329,6.01,169.57,169.53,45.3424913]
[1717702502633,6.01,169.56,169.53,45.3424913]
[1717702503911,2.1819,169.58,169.53,45.3424913]
[1717702504123,6.01,169.54,169.53,45.3424913]
[1717702506438,8.1923,169.54,169.53,45.3424913]
[1717702506941,40.2158,169.54,169.53,45.3424913]
[1717702507232,76.9204,169.54,169.53,40.67296272]
[1717702507715,76.9204,169.54,169.53,38.90210234]
[1717702508238,116.63596624,169.54,169.45,0.3672055]
[1717702508544,8.1934,169.46,169.45,0.3672055]
[1717702509236,35.29,169.44,169.36,0.8035403]
[1717702509423,2.1842,169.4,169.36,0.8035403]
[1717702509619,6.01,169.37,169.36,0.8035403]
[1717702510635,2.1843,169.39,169.36,0.8035403]
[1717702510817,6.01,169.37,169.36,0.8035403]
[1717702511229,8.3645,169.37,169.36,0.8035403]
[1717702511426,2.185,169.34,169.32,2.03578875]
[1717702511626,8.195,169.33,169.32,2.03578875]
[1717702511941,2.185,169.33,169.32,2.03578875]
[1717702512339,2.1849,169.34,169.32,2.03578875]
[1717702512514,2.185,169.33,169.32,2.03578875]
[1717702512935,2.1849,169.34,169.32,2.03578875]
[1717702513139,2.185,169.33,169.32,2.03578875]
[1717702514419,2.1848,169.35,169.32,2.03578875]
[1717702515344,2.185,169.34,169.32,2.03578875]
[1717702516338,2.185,169.33,169.32,2.03578875]
[1717702516643,2.1849,169.34,169.32,2.03578875]
[1717702516861,24.369,169.38,169.32,2.03578875]
[1717702516862,22.1848,169.36,169.32,2.03578875]
[1717702517145,2.1848,169.35,169.32,2.03578875]
[1717702517345,2.1849,169.34,169.32,2.03578875]
[1717702517720,20.0,169.38,169.32,2.03578875]
[1717702518037,2.1847,169.36,169.32,2.03578875]
[1717702518429,2.1844,169.38,169.32,4.22098875]
[1717702518748,2.1845,169.37,169.32,2.03578875]
[1717702519650,4.3685,169.4,169.32,2.03578875]
[1717702519651,2.1847,169.36,169.32,2.03578875]
[1717702520558,2.1849,169.35,169.32,2.03578875]
[1717702521226,2.1847,169.36,169.32,2.03578875]
[1717702521747,2.1846,169.37,169.32,2.03578875]
[1717702522324,2.1847,169.36,169.32,2.03578875]
[1717702522638,30.9219,169.39,169.32,2.03578875]
[1717702522639,2.1848,169.35,169.32,2.03578875]
[1717702522844,2.1847,169.36,169.32,2.03578875]
[1717702523335,2.1848,169.35,169.32,2.03578875]
[1717702524451,6.6843,169.36,169.32,2.03578875]
[1717702524752,20.0,169.35,169.32,2.03578875]
[1717702524927,2.185,169.33,169.32,2.03578875]
[1717702526548,24.3697,169.35,169.32,2.03578875]
[1717702526737,2.185,169.33,169.32,2.03578875]
[1717702528553,13.1103,169.33,169.32,2.03578875]
[1717702528849,2.185,169.33,169.32,2.03578875]
[1717702530254,35.29,169.31,169.19,0.8035403]
[1717702530457,23.8223,169.32,169.19,0.8035403]
[1717702530458,2.1867,169.2,169.19,0.8035403]
[1717702531167,24.8412,169.2,169.19,0.8035403]